Workbook

Sheet Udregning
A1: Type | B1: Antal | C1: Benevelse | D1: Netto pris | E1: Netto i alt | F1: Avance i % | G1: Avance i Kr. | H1: Salgs pris Netto | I1: Fragt | J1: I ALT SALG | O1: Netto pris | P1: =SUM(E3:E201) -> 1457412 | Q1: Netto Salgspris | R1: =SUM(H3:H201) -> 2444293.4 | S1: Brutto Salg + Moms | T1: =R1+R3 -> 3055366.75
A2: Undergulv | O2: Moms | P2: 0.25 | Q2: Moms | R2: 0.25 | S2: Fortjenste Netto | T2: =R1-P1 -> 986881.4
A3: Dampspære | B3: 1 | D3: 10 | E3: =B3*D3 -> 10 | G3: =Avance!D1*Udregning!E3/100 -> 10 | H3: =E3+G3 -> 20 | J3: =H3+I3 -> 20 | K3: =IF(B3>0,B3,"") -> 1 | L3: =IF(K3<"",A3,"") -> Dampspære | M3: =IF(K3<0,"",Type!D3) -> Tuber | N3: =IF(K3=B3,H3,"") -> 20 | O3: Mons Indkøb | P3: =P1*P2 -> 364353 | Q3: Moms netto | R3: =R1*R2 -> 611073.35 | S3: Fortjenste Brutto | T3: =T1-P1-P3 -> 1233601.75
A4: Fugemasse | E4: =B4*D4 -> 0 | G4: =Avance!D2*Udregning!E4/100 -> 0 | H4: =E4+G4 -> 0 | J4: =H4+I4 -> 0 | K4: =IF(B4>0,B4,"") ->  | L4: =IF(K4<"",A4,"") ->  | M4: =IF(K4<0,"",Type!D4) -> Tuber | N4: =IF(K4=B4,H4,"") -> 0
A5: Brikker | E5: 0 | G5: =Avance!D3*Udregning!E5/100 -> 0 | H5: 0 | J5: =H5+I5 -> 0 | M5: =IF(K5<0,"",Type!D5) -> Tuber | N5: 0
A6: Kiler | B6: 10 | D6: 10 | E6: 100 | G6: =Avance!D4*Udregning!E6/100 -> 25 | H6: 125 | J6: 125 | K6: 10 | L6: Kiler | M6: =IF(K6<0,"",Type!D6) -> Tuber | N6: 125
A7: Glas kiler | E7: 0 | G7: =Avance!D5*Udregning!E7/100 -> 0 | H7: 0 | J7: 0 | M7: =IF(K7<0,"",Type!D7) -> Tuber | N7: 0
A8: Strø 40/45 | E8: 0 | G8: =Avance!D6*Udregning!E8/100 -> 0 | H8: 0 | J8: 0 | M8: =IF(K8<0,"",Type!D8) -> Tuber | N8: 0
A9: Strø 40/60 | E9: 0 | G9: =Avance!D7*Udregning!E9/100 -> 0 | H9: 0 | J9: 0 | M9: =IF(K9<0,"",Type!D9) -> Tuber | N9: 0
A10: Isolering | E10: 0 | G10: =Avance!D8*Udregning!E10/100 -> 0 | H10: 0 | J10: 0 | M10: =IF(K10<0,"",Type!D10) -> Tuber | N10: 0
A11: Isolering måtter | B11: 100 | D11: 200 | E11: 20000 | G11: =Avance!D9*Udregning!E11/100 -> 11000 | H11: 31000 | I11: 1000000 | J11: 1031000 | K11: 100 | L11: Isolering måtter | M11: =IF(K11<0,"",Type!D11) -> Tuber | N11: 31000
A12: Tape | E12: 0 | G12: =Avance!D10*Udregning!E12/100 -> 0 | H12: 0 | J12: 0 | M12: =IF(K12<0,"",Type!D12) -> Tuber | N12: 0
A13: Skruer 70 | B13: 10 | D13: 100 | E13: 1000 | G13: =Avance!D11*Udregning!E13/100 -> 700 | H13: 1700 | J13: 1700 | K13: 10 | L13: Skruer 70 | M13: =IF(K13<0,"",Type!D13) -> Tuber | N13: 1700
A14: Skruer 90 | E14: 0 | G14: =Avance!D12*Udregning!E14/100 -> 0 | H14: 0 | J14: 0 | M14: =IF(K14<0,"",Type!D14) -> Tuber | N14: 0
A15: Søm 90 | E15: 0 | G15: =Avance!D13*Udregning!E15/100 -> 0 | H15: 0 | J15: 0 | M15: =IF(K15<0,"",Type!D15) -> Tuber | N15: 0
A16: Søm 120 | E16: 0 | G16: =Avance!D14*Udregning!E16/100 -> 0 | H16: 0 | J16: 0 | M16: =IF(K16<0,"",Type!D16) -> Tuber | N16: 0
A17: Foam | E17: 0 | G17: =Avance!D15*Udregning!E17/100 -> 0 | H17: 0 | J17: 0 | M17: =IF(K17<0,"",Type!D17) -> Tuber | N17: 0
A18: Plade | B18: 1 | D18: 1 | E18: 1 | G18: =Avance!D16*Udregning!E18/100 -> 0.95 | H18: 1.95 | J18: 1.95 | K18: 1 | L18: Plade | M18: =IF(K18<0,"",Type!D18) -> Tuber | N18: 1.95
A19: GULV | M19: =IF(K19<0,"",Type!D19) -> 0
A20: Lamel | B20: 1000 | D20: 200 | E20: 200000 | G20: =Avance!D17*Udregning!E20/100 -> 200000 | H20: 400000 | J20: =H20+I20 -> 400000 | K20: 1000 | L20: Lamel | M20: =IF(K20<0,"",Type!D20) -> Meter | N20: 400000
A21: Masiv | E21: 0 | G21: =Avance!D18*Udregning!E21/100 -> 0 | H21: 0 | J21: =H21+I21 -> 0 | M21: =IF(K21<0,"",Type!D21) -> Meter | N21: 0
A22: Dinesen | E22: 0 | G22: =Avance!D19*Udregning!E22/100 -> 0 | H22: 0 | J22: 0 | M22: =IF(K22<0,"",Type!D22) -> Meter | N22: 0
A23: Højkants | E23: 0 | G23: =Avance!D20*Udregning!E23/100 -> 0 | H23: 0 | J23: 0 | M23: =IF(K23<0,"",Type!D23) -> Meter | N23: 0
A24: Stav | E24: 0 | G24: =Avance!D21*Udregning!E24/100 -> 0 | H24: 0 | J24: 0 | M24: =IF(K24<0,"",Type!D24) -> Meter | N24: 0
A25: Mønster | E25: 0 | G25: =Avance!D22*Udregning!E25/100 -> 0 | H25: 0 | J25: 0 | M25: =IF(K25<0,"",Type!D25) -> Meter | N25: 0
A26: Plank | E26: 0 | G26: =Avance!D23*Udregning!E26/100 -> 0 | H26: 0 | J26: 0 | M26: =IF(K26<0,"",Type!D26) -> Meter | N26: 0
A27: Spån | E27: 0 | G27: =Avance!D24*Udregning!E27/100 -> 0 | H27: 0 | J27: 0 | M27: =IF(K27<0,"",Type!D27) -> Meter | N27: 0
A28: Termofelt | B28: 1 | D28: 1 | E28: 1 | G28: =Avance!D25*Udregning!E28/100 -> 0.45 | H28: 1.45 | J28: 1.45 | K28: 1 | L28: Termofelt | M28: =IF(K28<0,"",Type!D28) -> Meter | N28: 1.45
A29: SKINNER | M29: =IF(K29<0,"",Type!D29) -> 0
A30: Flad | E30: 0 | G30: =Avance!D26*Udregning!E30/100 -> 0 | H30: 0 | J30: =H30+I30 -> 0 | M30: =IF(K30<0,"",Type!D30) -> M2 | N30: 0
A31: Buet | E31: 0 | G31: =Avance!D27*Udregning!E31/100 -> 0 | H31: 0 | J31: =H31+I31 -> 0 | M31: =IF(K31<0,"",Type!D31) -> M2 | N31: 0
A32: overgang | E32: 0 | G32: =Avance!D28*Udregning!E32/100 -> 0 | H32: 0 | J32: 0 | M32: =IF(K32<0,"",Type!D32) -> M2 | N32: 0
A33: stål skinne | B33: 1000 | D33: 1000 | E33: 1000000 | G33: =Avance!D29*Udregning!E33/100 -> 650000 | H33: 1650000 | J33: 1650000 | K33: 1000 | L33: stål skinne | M33: =IF(K33<0,"",Type!D33) -> M2 | N33: 1650000
E34: 0 | G34: =Avance!D30*Udregning!E34/100 -> 0 | H34: 0 | J34: 0 | M34: =IF(K34<0,"",Type!D34) -> M2 | N34: 0
E35: 0 | G35: =Avance!D31*Udregning!E35/100 -> 0 | H35: 0 | J35: 0 | M35: =IF(K35<0,"",Type!D35) -> M2 | N35: 0
E36: 0 | G36: =Avance!D32*Udregning!E36/100 -> 0 | H36: 0 | J36: 0 | M36: =IF(K36<0,"",Type!D36) -> M2 | N36: 0
E37: 0 | G37: =Avance!D33*Udregning!E37/100 -> 0 | H37: 0 | J37: 0 | M37: =IF(K37<0,"",Type!D37) -> M2 | N37: 0
A38: AFDÆKNING | M38: =IF(K38<0,"",Type!D38) -> 0
A39: Pap | E39: 0 | G39: =Avance!D34*Udregning!E39/100 -> 0 | H39: 0 | J39: =H39+I39 -> 0 | M39: =IF(K39<0,"",Type!D39) -> Billet | N39: 0
A40: Plast | E40: 0 | G40: =Avance!D35*Udregning!E40/100 -> 0 | H40: 0 | J40: =H40+I40 -> 0 | M40: =IF(K40<0,"",Type!D40) -> Kasser | N40: 0
A41: Massonit | E41: 0 | G41: =Avance!D36*Udregning!E41/100 -> 0 | H41: 0 | J41: =H41+I41 -> 0 | M41: =IF(K41<0,"",Type!D41) -> Kasser | N41: 0
A42: Spån | E42: 0 | G42: =Avance!D37*Udregning!E42/100 -> 0 | H42: 0 | J42: =H42+I42 -> 0 | M42: =IF(K42<0,"",Type!D42) -> Kasser | N42: 0
A43: KØRSEL UDGIFTER | M43: =IF(K43<0,"",Type!D43) -> 0
A44: km | B44: 100 | D44: 3 | E44: 300 | G44: =Avance!D38*Udregning!E44/100 -> 45 | H44: 345 | J44: =H44+I44 -> 345 | K44: 100 | L44: km | M44: =IF(K44<0,"",Type!D44) -> Sæt | N44: 345
A45: Bro | E45: 0 | G45: =Avance!D39*Udregning!E45/100 -> 0 | H45: 0 | J45: =H45+I45 -> 0 | M45: =IF(K45<0,"",Type!D45) -> Sæt | N45: 0
E46: 0 | G46: =Avance!D40*Udregning!E46/100 -> 0 | H46: 0 | J46: =H46+I46 -> 0 | M46: =IF(K46<0,"",Type!D46) -> Sæt | N46: 0
E47: 0 | G47: =Avance!D41*Udregning!E47/100 -> 0 | H47: 0 | J47: =H47+I47 -> 0 | M47: =IF(K47<0,"",Type!D47) -> Sæt | N47: 0
E48: 0 | G48: =Avance!D42*Udregning!E48/100 -> 0 | H48: 0 | J48: =H48+I48 -> 0 | M48: =IF(K48<0,"",Type!D48) -> Sæt | N48: 0
A49: BOLIG | M49: =IF(K49<0,"",Type!D49) -> 0
A50: vanderhjem | B50: 100 | D50: 100 | E50: 10000 | G50: =Avance!D43*Udregning!E50/100 -> 4000 | H50: 14000 | J50: =H50+I50 -> 14000 | K50: 100 | L50: vanderhjem | M50: =IF(K50<0,"",Type!D50) -> Kasser | N50: 14000
A51: Overnatning | E51: 0 | G51: =Avance!D44*Udregning!E51/100 -> 0 | H51: 0 | J51: =H51+I51 -> 0 | M51: =IF(K51<0,"",Type!D51) -> Kasser | N51: 0
E52: 0 | G52: =Avance!D45*Udregning!E52/100 -> 0 | H52: 0 | J52: =H52+I52 -> 0 | M52: =IF(K52<0,"",Type!D52) -> Kasser | N52: 0
A53: AFFALD | M53: =IF(K53<0,"",Type!D53) -> 0
E54: 0 | G54: =Avance!D46*Udregning!E54/100 -> 0 | H54: 0 | J54: =H54+I54 -> 0 | M54: =IF(K54<0,"",Type!D54) -> Ruller | N54: 0
E55: 0 | G55: =Avance!D47*Udregning!E55/100 -> 0 | H55: 0 | J55: =H55+I55 -> 0 | M55: =IF(K55<0,"",Type!D55) -> Ruller | N55: 0
E56: 0 | G56: =Avance!D48*Udregning!E56/100 -> 0 | H56: 0 | J56: =H56+I56 -> 0 | M56: =IF(K56<0,"",Type!D56) -> Ruller | N56: 0
A57: TIMER | M57: =IF(K57<0,"",Type!D57) -> 0
A58: Timer | E58: 0 | G58: =Avance!D49*Udregning!E58/100 -> 0 | H58: 0 | J58: =H58+I58 -> 0 | M58: =IF(K58<0,"",Type!D58) -> Km | N58: 0
A59: Overtid | E59: 0 | G59: =Avance!D50*Udregning!E59/100 -> 0 | H59: 0 | J59: =H59+I59 -> 0 | M59: =IF(K59<0,"",Type!D59) -> Km | N59: 0
A60: MONTERING | M60: =IF(K60<0,"",Type!D60) -> 0
A61: M2 | B61: 1000 | D61: 95 | E61: 95000 | G61: =Avance!D51*Udregning!E61/100 -> 76000 | H61: 171000 | J61: =H61+I61 -> 171000 | K61: 1000 | L61: M2 | M61: =IF(K61<0,"",Type!D61) -> Billet | N61: 171000
A62: Timer | E62: 0 | G62: =Avance!D52*Udregning!E62/100 -> 0 | H62: 0 | J62: =H62+I62 -> 0 | M62: =IF(K62<0,"",Type!D62) -> Billet | N62: 0
A63: Andet | E63: 0 | G63: =Avance!D53*Udregning!E63/100 -> 0 | H63: 0 | J63: =H63+I63 -> 0 | M63: =IF(K63<0,"",Type!D63) -> Billet | N63: 0
E64: 0 | G64: =Avance!D54*Udregning!E64/100 -> 0 | H64: 0 | J64: =H64+I64 -> 0 | M64: =IF(K64<0,"",Type!D64) -> Billet | N64: 0
A65: VINDUER | M65: =IF(K65<0,"",Type!D65) -> 0
A66: træ 100 x 300 | B66: 1 | D66: 5000 | E66: 5000 | G66: =Avance!D55*Udregning!E66/100 -> 500 | H66: 5500 | J66: =H66+I66 -> 5500 | K66: 1 | L66: træ 100 x 300 | M66: =IF(K66<0,"",Type!D66) -> stk | N66: 5500
E67: 0 | G67: =Avance!D56*Udregning!E67/100 -> 0 | H67: 0 | J67: =H67+I67 -> 0 | M67: =IF(K67<0,"",Type!D67) -> Km | N67: 0
E68: =B68*D68 -> 0 | G68: =Avance!D57*Udregning!E68/100 -> 0 | H68: =E68+G68 -> 0 | J68: 0 | K68: =IF(B68>0,B68,"") ->  | L68: =IF(K68<"",A68,"") ->  | M68: =IF(K68<0,"",Type!D68) -> Km | N68: =IF(K68=B68,H68,"") -> 0
E69: 0 | G69: =Avance!D58*Udregning!E69/100 -> 0 | H69: 0 | J69: 0 | M69: =IF(K69<0,"",Type!D69) -> stk | N69: 0
E70: 0 | G70: =Avance!D59*Udregning!E70/100 -> 0 | H70: 0 | J70: 0 | M70: =IF(K70<0,"",Type!D70) -> Billet | N70: 0
E71: 0 | G71: =Avance!D60*Udregning!E71/100 -> 0 | H71: 0 | J71: 0 | M71: =IF(K71<0,"",Type!D71) -> Billet | N71: 0
E72: 0 | G72: =Avance!D61*Udregning!E72/100 -> 0 | H72: 0 | J72: 0 | M72: =IF(K72<0,"",Type!D72) -> Billet | N72: 0
E73: 0 | G73: =Avance!D62*Udregning!E73/100 -> 0 | H73: 0 | J73: 0 | M73: =IF(K73<0,"",Type!D73) -> Billet | N73: 0
E74: 0 | G74: =Avance!D63*Udregning!E74/100 -> 0 | H74: 0 | J74: 0 | M74: =IF(K74<0,"",Type!D74) -> stk | N74: 0
E75: 0 | G75: =Avance!D64*Udregning!E75/100 -> 0 | H75: 0 | J75: 0 | M75: =IF(K75<0,"",Type!D75) -> Meter | N75: 0
E76: 0 | G76: =Avance!D65*Udregning!E76/100 -> 0 | H76: 0 | J76: 0 | M76: =IF(K76<0,"",Type!D76) -> Km | N76: 0
E77: 0 | G77: =Avance!D66*Udregning!E77/100 -> 0 | H77: 0 | J77: 0 | M77: =IF(K77<0,"",Type!D77) -> Km | N77: 0
E78: 0 | G78: =Avance!D67*Udregning!E78/100 -> 0 | H78: 0 | J78: 0 | M78: =IF(K78<0,"",Type!D78) -> stk | N78: 0
E79: 0 | G79: =Avance!D68*Udregning!E79/100 -> 0 | H79: 0 | J79: 0 | M79: =IF(K79<0,"",Type!D79) -> Billet | N79: 0
E80: 0 | G80: =Avance!D69*Udregning!E80/100 -> 0 | H80: 0 | J80: 0 | M80: =IF(K80<0,"",Type!D80) -> Billet | N80: 0
E81: 0 | G81: =Avance!D70*Udregning!E81/100 -> 0 | H81: 0 | J81: 0 | M81: =IF(K81<0,"",Type!D81) -> Billet | N81: 0
E82: 0 | G82: =Avance!D71*Udregning!E82/100 -> 0 | H82: 0 | J82: 0 | M82: =IF(K82<0,"",Type!D82) -> Billet | N82: 0
E83: 0 | G83: =Avance!D72*Udregning!E83/100 -> 0 | H83: 0 | J83: 0 | M83: =IF(K83<0,"",Type!D83) -> stk | N83: 0
E84: 0 | G84: =Avance!D73*Udregning!E84/100 -> 0 | H84: 0 | J84: 0 | M84: =IF(K84<0,"",Type!D84) -> stk | N84: 0
A85: DØR | M85: =IF(K85<0,"",Type!D85) -> 0
A86: plast | B86: 10 | D86: 1250 | E86: 12500 | G86: =Avance!D74*Udregning!E86/100 -> 12500 | H86: 25000 | J86: =H86+I86 -> 25000 | K86: 10 | L86: plast | M86: =IF(K86<0,"",Type!D86) -> Km | N86: 25000
E87: 0 | G87: =Avance!D75*Udregning!E87/100 -> 0 | H87: 0 | J87: =H87+I87 -> 0 | M87: =IF(K87<0,"",Type!D87) -> Km | N87: 0
E88: 0 | G88: =Avance!D76*Udregning!E88/100 -> 0 | H88: 0 | J88: 0 | M88: =IF(K88<0,"",Type!D88) -> stk | N88: 0
E89: 0 | G89: =Avance!D77*Udregning!E89/100 -> 0 | H89: 0 | J89: 0 | M89: =IF(K89<0,"",Type!D89) -> Billet | N89: 0
E90: 0 | G90: =Avance!D78*Udregning!E90/100 -> 0 | H90: 0 | J90: 0 | M90: =IF(K90<0,"",Type!D90) -> Billet | N90: 0
E91: 0 | G91: =Avance!D79*Udregning!E91/100 -> 0 | H91: 0 | J91: 0 | M91: =IF(K91<0,"",Type!D91) -> Billet | N91: 0
E92: 0 | G92: =Avance!D80*Udregning!E92/100 -> 0 | H92: 0 | J92: 0 | M92: =IF(K92<0,"",Type!D92) -> Billet | N92: 0
E93: 0 | G93: =Avance!D81*Udregning!E93/100 -> 0 | H93: 0 | J93: 0 | M93: =IF(K93<0,"",Type!D93) -> stk | N93: 0
E94: 0 | G94: =Avance!D82*Udregning!E94/100 -> 0 | H94: 0 | J94: 0 | M94: =IF(K94<0,"",Type!D94) -> stk | N94: 0
A95: FUGE &BÅND | M95: =IF(K95<0,"",Type!D95) -> 0
E96: 0 | G96: =Avance!D83*Udregning!E96/100 -> 0 | H96: 0 | J96: =H96+I96 -> 0 | M96: =IF(K96<0,"",Type!D96) -> Tuber | N96: 0
E97: 0 | G97: =Avance!D84*Udregning!E97/100 -> 0 | H97: 0 | J97: =H97+I97 -> 0 | M97: =IF(K97<0,"",Type!D97) -> Km | N97: 0
E98: 0 | G98: =Avance!D85*Udregning!E98/100 -> 0 | H98: 0 | J98: 0 | M98: =IF(K98<0,"",Type!D98) -> Km | N98: 0
E99: 0 | G99: =Avance!D86*Udregning!E99/100 -> 0 | H99: 0 | J99: 0 | M99: =IF(K99<0,"",Type!D99) -> stk | N99: 0
E100: 0 | G100: =Avance!D87*Udregning!E100/100 -> 0 | H100: 0 | J100: 0 | M100: =IF(K100<0,"",Type!D100) -> Billet | N100: 0
E101: 0 | G101: =Avance!D88*Udregning!E101/100 -> 0 | H101: 0 | J101: 0 | M101: =IF(K101<0,"",Type!D101) -> Billet | N101: 0
E102: 0 | G102: =Avance!D89*Udregning!E102/100 -> 0 | H102: 0 | J102: 0 | M102: =IF(K102<0,"",Type!D102) -> Billet | N102: 0
E103: 0 | G103: =Avance!D90*Udregning!E103/100 -> 0 | H103: 0 | J103: 0 | M103: =IF(K103<0,"",Type!D103) -> Billet | N103: 0
E104: 0 | G104: =Avance!D91*Udregning!E104/100 -> 0 | H104: 0 | J104: 0 | M104: =IF(K104<0,"",Type!D104) -> stk | N104: 0
A105: UDEDAGE | M105: =IF(K105<0,"",Type!D105) -> 0
E106: 0 | G106: =Avance!D92*Udregning!E106/100 -> 0 | H106: 0 | J106: =H106+I106 -> 0 | M106: =IF(K106<0,"",Type!D106) -> stk | N106: 0
E107: 0 | G107: =Avance!D93*Udregning!E107/100 -> 0 | H107: 0 | J107: =H107+I107 -> 0 | M107: =IF(K107<0,"",Type!D107) -> Meter | N107: 0
E108: 0 | G108: =Avance!D94*Udregning!E108/100 -> 0 | H108: 0 | J108: =H108+I108 -> 0 | M108: =IF(K108<0,"",Type!D108) -> Meter | N108: 0
E109: 0 | G109: =Avance!D95*Udregning!E109/100 -> 0 | H109: 0 | J109: =H109+I109 -> 0 | M109: =IF(K109<0,"",Type!D109) -> Km | N109: 0
A110: SKURVOGN | M110: =IF(K110<0,"",Type!D110) -> 0
A111: Leje | E111: 0 | G111: =Avance!D96*Udregning!E111/100 -> 0 | H111: 0 | J111: =H111+I111 -> 0 | M111: =IF(K111<0,"",Type!D111) -> Km | N111: 0
A112: Transport | B112: 100 | D112: 1000 | E112: 100000 | G112: =Avance!D97*Udregning!E112/100 -> 25000 | H112: 125000 | J112: =H112+I112 -> 125000 | K112: 100 | L112: Transport | M112: =IF(K112<0,"",Type!D112) -> stk | N112: 125000
A113: Kran | E113: 0 | G113: =Avance!D98*Udregning!E113/100 -> 0 | H113: 0 | J113: =H113+I113 -> 0 | M113: =IF(K113<0,"",Type!D113) -> Billet | N113: 0
A114: LISTER | M114: =IF(K114<0,"",Type!D114) -> 0
A115: Sandslit | E115: =B115*D115 -> 0 | G115: =Avance!D99*Udregning!E115/100 -> 0 | H115: =E115+G115 -> 0 | J115: =H115+I115 -> 0 | M115: =IF(K115<0,"",Type!D115) -> Billet | N115: 0
A116: Fodlist | E116: =B116*D116 -> 0 | G116: =Avance!D100*Udregning!E116/100 -> 0 | H116: =E116+G116 -> 0 | J116: =H116+I116 -> 0 | M116: =IF(K116<0,"",Type!D116) -> Billet | N116: 0
A117: Gerekt | E117: 0 | G117: =Avance!D101*Udregning!E117/100 -> 0 | H117: 0 | J117: 0 | M117: =IF(K117<0,"",Type!D117) -> Billet | N117: 0
A118: Loftliste | B118: 1000 | D118: 10 | E118: 10000 | G118: =Avance!D102*Udregning!E118/100 -> 5000 | H118: 15000 | J118: 15000 | K118: 1000 | L118: Loftliste | M118: =IF(K118<0,"",Type!D118) -> stk | N118: 15000
A119: Trælist | E119: 0 | G119: =Avance!D103*Udregning!E119/100 -> 0 | H119: 0 | J119: 0 | M119: =IF(K119<0,"",Type!D119) -> Meter | N119: 0
A120: Tilpasnings list | B120: 500 | D120: 7 | E120: 3500 | G120: =Avance!D104*Udregning!E120/100 -> 2100 | H120: 5600 | J120: 5600 | K120: 500 | L120: Tilpasnings list | M120: =IF(K120<0,"",Type!D120) -> stk | N120: 5600
E121: 0 | G121: =Avance!D105*Udregning!E121/100 -> 0 | H121: 0 | J121: 0 | M121: =IF(K121<0,"",Type!D121) -> Sæt | N121: 0
E122: 0 | G122: =Avance!D106*Udregning!E122/100 -> 0 | H122: 0 | J122: 0 | M122: =IF(K122<0,"",Type!D122) -> Ruller | N122: 0
E123: 0 | G123: =Avance!D107*Udregning!E123/100 -> 0 | H123: 0 | J123: 0 | M123: =IF(K123<0,"",Type!D123) -> Km | N123: 0
M124: =IF(K124<0,"",Type!D124) -> 0
E125: =B125*D125 -> 0 | G125: =Avance!D108*Udregning!E125/100 -> 0 | H125: =E125+G125 -> 0 | J125: =H125+I125 -> 0 | M125: =IF(K125<0,"",Type!D125) -> M2 | N125: 0
E126: =B126*D126 -> 0 | G126: =Avance!D109*Udregning!E126/100 -> 0 | H126: =E126+G126 -> 0 | J126: =H126+I126 -> 0 | M126: =IF(K126<0,"",Type!D126) -> Km | N126: 0
E127: =B127*D127 -> 0 | G127: =Avance!D110*Udregning!E127/100 -> 0 | H127: =E127+G127 -> 0 | J127: =H127+I127 -> 0 | M127: =IF(K127<0,"",Type!D127) -> stk | N127: 0
M128: =IF(K128<0,"",Type!D128) ->  | N128: 0
M129: =IF(K129<0,"",Type!D129) ->  | N129: 0
M130: =IF(K130<0,"",Type!D130) ->  | N130: 0
M131: =IF(K131<0,"",Type!D131) ->  | N131: 0
K132: =IF(B132>0,B132,"") ->  | L132: =IF(K132<"",A132,"") ->  | M132: =IF(K132<0,"",Type!D132) -> Km | N132: =IF(K132=B132,H132,"") -> 0
M133: =IF(K133<0,"",Type!D133) ->  | N133: 0
M134: =IF(K134<0,"",Type!D134) ->  | N134: 0
M135: =IF(K135<0,"",Type!D135) ->  | N135: 0
M136: =IF(K136<0,"",Type!D136) ->  | N136: 0
M137: =IF(K137<0,"",Type!D137) ->  | N137: 0
M138: =IF(K138<0,"",Type!D138) ->  | N138: 0
M139: =IF(K139<0,"",Type!D139) ->  | N139: 0
M140: =IF(K140<0,"",Type!D140) ->  | N140: 0
M141: =IF(K141<0,"",Type!D141) ->  | N141: 0
M142: =IF(K142<0,"",Type!D142) ->  | N142: 0
M143: =IF(K143<0,"",Type!D143) ->  | N143: 0
M144: =IF(K144<0,"",Type!D144) ->  | N144: 0
M145: =IF(K145<0,"",Type!D145) ->  | N145: 0
M146: =IF(K146<0,"",Type!D146) ->  | N146: 0
M147: =IF(K147<0,"",Type!D147) ->  | N147: 0
M148: =IF(K148<0,"",Type!D148) ->  | N148: 0
M149: =IF(K149<0,"",Type!D149) ->  | N149: 0
M150: =IF(K150<0,"",Type!D150) ->  | N150: 0
I201: =SUM(I3:I200) -> 1000000

Sheet Type
A3: stk | B3: 4 | C3: =VLOOKUP(B3,Tabel3[#All],2,FALSE) -> Tuber | D3: =C3 -> Tuber | G3: Kolonne1 | H3: Kolonne2
A4: Meter | B4: 4 | C4: =VLOOKUP(B4,Tabel3[#All],2,FALSE) -> Tuber | D4: =C4 -> Tuber | G4: 1 | H4: stk
A5: M2 | B5: 4 | C5: =VLOOKUP(B5,Tabel3[#All],2,FALSE) -> Tuber | D5: =C5 -> Tuber | G5: 2 | H5: Meter
A6: Tuber | B6: 4 | C6: =VLOOKUP(B6,Tabel3[#All],2,FALSE) -> Tuber | D6: Tuber | G6: 3 | H6: M2
A7: Kasser | B7: 4 | C7: =VLOOKUP(B7,Tabel3[#All],2,FALSE) -> Tuber | D7: Tuber | G7: 4 | H7: Tuber
A8: Sæt | B8: 4 | C8: =VLOOKUP(B8,Tabel3[#All],2,FALSE) -> Tuber | D8: Tuber | G8: 5 | H8: Kasser
A9: Ruller | B9: 4 | C9: =VLOOKUP(B9,Tabel3[#All],2,FALSE) -> Tuber | D9: Tuber | G9: 6 | H9: Sæt
A10: Km | B10: 4 | C10: =VLOOKUP(B10,Tabel3[#All],2,FALSE) -> Tuber | D10: Tuber | G10: 7 | H10: Ruller
A11: Billet | B11: 4 | C11: =VLOOKUP(B11,Tabel3[#All],2,FALSE) -> Tuber | D11: Tuber | G11: 8 | H11: Km
A12: Timer | B12: 4 | C12: =VLOOKUP(B12,Tabel3[#All],2,FALSE) -> Tuber | D12: Tuber | G12: 9 | H12: Billet
A13: Overtid | B13: 4 | C13: =VLOOKUP(B13,Tabel3[#All],2,FALSE) -> Tuber | D13: Tuber | G13: 10 | H13: Timer
A14: Andet | B14: 4 | C14: =VLOOKUP(B14,Tabel3[#All],2,FALSE) -> Tuber | D14: Tuber | G14: 11 | H14: Overtid
B15: 4 | C15: =VLOOKUP(B15,Tabel3[#All],2,FALSE) -> Tuber | D15: Tuber | G15: 12 | H15: Andet
B16: 4 | C16: =VLOOKUP(B16,Tabel3[#All],2,FALSE) -> Tuber | D16: Tuber
B17: 4 | C17: =VLOOKUP(B17,Tabel3[#All],2,FALSE) -> Tuber | D17: Tuber
B18: 4 | C18: =VLOOKUP(B18,Tabel3[#All],2,FALSE) -> Tuber | D18: Tuber
B19: 2
B20: 2 | C20: =VLOOKUP(B19,Tabel3[#All],2,FALSE) -> Meter | D20: Meter
B21: 2 | C21: =VLOOKUP(B21,Tabel3[#All],2,FALSE) -> Meter | D21: Meter
B22: 2 | C22: =VLOOKUP(B22,Tabel3[#All],2,FALSE) -> Meter | D22: Meter
B23: 2 | C23: =VLOOKUP(B23,Tabel3[#All],2,FALSE) -> Meter | D23: Meter
B24: 2 | C24: =VLOOKUP(B24,Tabel3[#All],2,FALSE) -> Meter | D24: Meter
B25: 2 | C25: =VLOOKUP(B25,Tabel3[#All],2,FALSE) -> Meter | D25: Meter
B26: 2 | C26: =VLOOKUP(B26,Tabel3[#All],2,FALSE) -> Meter | D26: Meter
B27: 2 | C27: =VLOOKUP(B27,Tabel3[#All],2,FALSE) -> Meter | D27: Meter
B28: 2 | C28: =VLOOKUP(B28,Tabel3[#All],2,FALSE) -> Meter | D28: Meter
B29: 3
B30: 3 | C30: =VLOOKUP(B30,Tabel3[#All],2,FALSE) -> M2 | D30: M2
B31: 3 | C31: =VLOOKUP(B31,Tabel3[#All],2,FALSE) -> M2 | D31: M2
B32: 3 | C32: =VLOOKUP(B32,Tabel3[#All],2,FALSE) -> M2 | D32: M2
B33: 3 | C33: =VLOOKUP(B33,Tabel3[#All],2,FALSE) -> M2 | D33: M2
B34: 3 | C34: =VLOOKUP(B34,Tabel3[#All],2,FALSE) -> M2 | D34: M2
B35: 3 | C35: =VLOOKUP(B35,Tabel3[#All],2,FALSE) -> M2 | D35: M2
B36: 3 | C36: =VLOOKUP(B36,Tabel3[#All],2,FALSE) -> M2 | D36: M2
B37: 3 | C37: =VLOOKUP(B37,Tabel3[#All],2,FALSE) -> M2 | D37: M2
B38: 6
B39: 9 | C39: =VLOOKUP(B39,Tabel3[#All],2,FALSE) -> Billet | D39: Billet
B40: 5 | C40: =VLOOKUP(B40,Tabel3[#All],2,FALSE) -> Kasser | D40: Kasser
B41: 5 | C41: =VLOOKUP(B41,Tabel3[#All],2,FALSE) -> Kasser | D41: Kasser
B42: 5 | C42: =VLOOKUP(B42,Tabel3[#All],2,FALSE) -> Kasser | D42: Kasser
B44: 6 | C44: =VLOOKUP(B44,Tabel3[#All],2,FALSE) -> Sæt | D44: Sæt
B45: 6 | C45: =VLOOKUP(B45,Tabel3[#All],2,FALSE) -> Sæt | D45: Sæt
B46: 6 | C46: =VLOOKUP(B46,Tabel3[#All],2,FALSE) -> Sæt | D46: Sæt
B47: 6 | C47: =VLOOKUP(B47,Tabel3[#All],2,FALSE) -> Sæt | D47: Sæt
B48: 6 | C48: =VLOOKUP(B48,Tabel3[#All],2,FALSE) -> Sæt | D48: Sæt
B50: 5 | C50: =VLOOKUP(B50,Tabel3[#All],2,FALSE) -> Kasser | D50: Kasser
B51: 5 | C51: =VLOOKUP(B51,Tabel3[#All],2,FALSE) -> Kasser | D51: Kasser
B52: 5 | C52: =VLOOKUP(B52,Tabel3[#All],2,FALSE) -> Kasser | D52: Kasser
B53: 2 | C53: =VLOOKUP(B53,Tabel3[#All],2,FALSE) -> Meter
B54: 7 | C54: =VLOOKUP(B54,Tabel3[#All],2,FALSE) -> Ruller | D54: Ruller
B55: 7 | C55: =VLOOKUP(B55,Tabel3[#All],2,FALSE) -> Ruller | D55: Ruller
B56: 7 | C56: =VLOOKUP(B56,Tabel3[#All],2,FALSE) -> Ruller | D56: Ruller
B58: 8 | C58: =VLOOKUP(B58,Tabel3[#All],2,FALSE) -> Km | D58: Km
B59: 8 | C59: =VLOOKUP(B59,Tabel3[#All],2,FALSE) -> Km | D59: Km
B60: 1 | C60: =VLOOKUP(B60,Tabel3[#All],2,FALSE) -> stk
B61: 9 | C61: =VLOOKUP(B61,Tabel3[#All],2,FALSE) -> Billet | D61: Billet
B62: 9 | C62: =VLOOKUP(B62,Tabel3[#All],2,FALSE) -> Billet | D62: Billet
B63: 9 | C63: =VLOOKUP(B63,Tabel3[#All],2,FALSE) -> Billet | D63: Billet
B64: 9 | C64: =VLOOKUP(B64,Tabel3[#All],2,FALSE) -> Billet | D64: Billet
B66: 1 | C66: =VLOOKUP(B66,Tabel3[#All],2,FALSE) -> stk | D66: stk
B67: 8 | C67: =VLOOKUP(B67,Tabel3[#All],2,FALSE) -> Km | D67: Km
B68: 8 | C68: =VLOOKUP(B68,Tabel3[#All],2,FALSE) -> Km | D68: Km
B69: 1 | C69: =VLOOKUP(B69,Tabel3[#All],2,FALSE) -> stk | D69: =C69 -> stk
B70: 9 | C70: =VLOOKUP(B70,Tabel3[#All],2,FALSE) -> Billet | D70: Billet
B71: 9 | C71: =VLOOKUP(B71,Tabel3[#All],2,FALSE) -> Billet | D71: Billet
B72: 9 | C72: =VLOOKUP(B72,Tabel3[#All],2,FALSE) -> Billet | D72: Billet
B73: 9 | C73: =VLOOKUP(B73,Tabel3[#All],2,FALSE) -> Billet | D73: Billet
B74: 1 | C74: =VLOOKUP(B74,Tabel3[#All],2,FALSE) -> stk | D74: stk
B75: 2 | C75: =VLOOKUP(B75,Tabel3[#All],2,FALSE) -> Meter | D75: Meter
B76: 8 | C76: =VLOOKUP(B76,Tabel3[#All],2,FALSE) -> Km | D76: Km
B77: 8 | C77: =VLOOKUP(B77,Tabel3[#All],2,FALSE) -> Km | D77: Km
B78: 1 | C78: =VLOOKUP(B78,Tabel3[#All],2,FALSE) -> stk | D78: stk
B79: 9 | C79: =VLOOKUP(B79,Tabel3[#All],2,FALSE) -> Billet | D79: Billet
B80: 9 | C80: =VLOOKUP(B80,Tabel3[#All],2,FALSE) -> Billet | D80: Billet
B81: 9 | C81: =VLOOKUP(B81,Tabel3[#All],2,FALSE) -> Billet | D81: Billet
B82: 9 | C82: =VLOOKUP(B82,Tabel3[#All],2,FALSE) -> Billet | D82: Billet
B83: 1 | C83: =VLOOKUP(B83,Tabel3[#All],2,FALSE) -> stk | D83: stk
B84: 1 | C84: =VLOOKUP(B84,Tabel3[#All],2,FALSE) -> stk | D84: stk
B86: 8 | C86: =VLOOKUP(B86,Tabel3[#All],2,FALSE) -> Km | D86: Km
B87: 8 | C87: =VLOOKUP(B87,Tabel3[#All],2,FALSE) -> Km | D87: Km
B88: 1 | C88: =VLOOKUP(B88,Tabel3[#All],2,FALSE) -> stk | D88: stk
B89: 9 | C89: =VLOOKUP(B89,Tabel3[#All],2,FALSE) -> Billet | D89: Billet
B90: 9 | C90: =VLOOKUP(B90,Tabel3[#All],2,FALSE) -> Billet | D90: Billet
B91: 9 | C91: =VLOOKUP(B91,Tabel3[#All],2,FALSE) -> Billet | D91: Billet
B92: 9 | C92: =VLOOKUP(B92,Tabel3[#All],2,FALSE) -> Billet | D92: Billet
B93: 1 | C93: =VLOOKUP(B93,Tabel3[#All],2,FALSE) -> stk | D93: stk
B94: 1 | C94: =VLOOKUP(B94,Tabel3[#All],2,FALSE) -> stk | D94: stk
B96: 4 | C96: =VLOOKUP(B96,Tabel3[#All],2,FALSE) -> Tuber | D96: Tuber
B97: 8 | C97: =VLOOKUP(B97,Tabel3[#All],2,FALSE) -> Km | D97: Km
B98: 8 | C98: =VLOOKUP(B98,Tabel3[#All],2,FALSE) -> Km | D98: Km
B99: 1 | C99: =VLOOKUP(B99,Tabel3[#All],2,FALSE) -> stk | D99: stk
B100: 9 | C100: =VLOOKUP(B100,Tabel3[#All],2,FALSE) -> Billet | D100: Billet
B101: 9 | C101: =VLOOKUP(B101,Tabel3[#All],2,FALSE) -> Billet | D101: Billet
B102: 9 | C102: =VLOOKUP(B102,Tabel3[#All],2,FALSE) -> Billet | D102: Billet
B103: 9 | C103: =VLOOKUP(B103,Tabel3[#All],2,FALSE) -> Billet | D103: Billet
B104: 1 | C104: =VLOOKUP(B104,Tabel3[#All],2,FALSE) -> stk | D104: stk
B106: 1 | C106: =VLOOKUP(B106,Tabel3[#All],2,FALSE) -> stk | D106: stk
B107: 2 | C107: =VLOOKUP(B107,Tabel3[#All],2,FALSE) -> Meter | D107: Meter
B108: 2 | C108: =VLOOKUP(B108,Tabel3[#All],2,FALSE) -> Meter | D108: Meter
B109: 8 | C109: =VLOOKUP(B109,Tabel3[#All],2,FALSE) -> Km | D109: Km
B111: 8 | C111: =VLOOKUP(B111,Tabel3[#All],2,FALSE) -> Km | D111: Km
B112: 1 | C112: =VLOOKUP(B112,Tabel3[#All],2,FALSE) -> stk | D112: stk
B113: 9 | C113: =VLOOKUP(B113,Tabel3[#All],2,FALSE) -> Billet | D113: Billet
B115: 9 | C115: =VLOOKUP(B115,Tabel3[#All],2,FALSE) -> Billet | D115: Billet
B116: 9 | C116: =VLOOKUP(B116,Tabel3[#All],2,FALSE) -> Billet | D116: Billet
B117: 9 | C117: =VLOOKUP(B117,Tabel3[#All],2,FALSE) -> Billet | D117: Billet
B118: 1 | C118: =VLOOKUP(B118,Tabel3[#All],2,FALSE) -> stk | D118: stk
B119: 2 | C119: =VLOOKUP(B119,Tabel3[#All],2,FALSE) -> Meter | D119: Meter
B120: 1 | C120: =VLOOKUP(B120,Tabel3[#All],2,FALSE) -> stk | D120: stk
B121: 6 | C121: =VLOOKUP(B121,Tabel3[#All],2,FALSE) -> Sæt | D121: Sæt
B122: 7 | C122: =VLOOKUP(B122,Tabel3[#All],2,FALSE) -> Ruller | D122: Ruller
B123: 8 | C123: =VLOOKUP(B123,Tabel3[#All],2,FALSE) -> Km | D123: Km
B125: 3 | C125: =VLOOKUP(B125,Tabel3[#All],2,FALSE) -> M2 | D125: M2
B126: 8 | C126: =VLOOKUP(B126,Tabel3[#All],2,FALSE) -> Km | D126: Km
B127: 1 | C127: =VLOOKUP(B127,Tabel3[#All],2,FALSE) -> stk | D127: stk
C128: =VLOOKUP(B128,Tabel3[#All],2,FALSE) -> 
C129: =VLOOKUP(B129,Tabel3[#All],2,FALSE) -> 
C130: =VLOOKUP(B130,Tabel3[#All],2,FALSE) -> 
C131: =VLOOKUP(B131,Tabel3[#All],2,FALSE) -> 
B132: 8 | C132: =VLOOKUP(B132,Tabel3[#All],2,FALSE) -> Km | D132: Km
C133: =VLOOKUP(B133,Tabel3[#All],2,FALSE) ->  | D133: =C133 -> 
C134: =VLOOKUP(B134,Tabel3[#All],2,FALSE) -> 
C135: =VLOOKUP(B135,Tabel3[#All],2,FALSE) -> 
C136: =VLOOKUP(B136,Tabel3[#All],2,FALSE) -> 
C137: =VLOOKUP(B137,Tabel3[#All],2,FALSE) -> 
C138: =VLOOKUP(B138,Tabel3[#All],2,FALSE) -> 
C139: =VLOOKUP(B139,Tabel3[#All],2,FALSE) -> 
C140: =VLOOKUP(B140,Tabel3[#All],2,FALSE) -> 
C141: =VLOOKUP(B141,Tabel3[#All],2,FALSE) -> 
C142: =VLOOKUP(B142,Tabel3[#All],2,FALSE) -> 
C143: =VLOOKUP(B143,Tabel3[#All],2,FALSE) -> 
C144: =VLOOKUP(B144,Tabel3[#All],2,FALSE) -> 
C145: =VLOOKUP(B145,Tabel3[#All],2,FALSE) -> 
C146: =VLOOKUP(B146,Tabel3[#All],2,FALSE) -> 
C147: =VLOOKUP(B147,Tabel3[#All],2,FALSE) -> 
C148: =VLOOKUP(B148,Tabel3[#All],2,FALSE) -> 
C149: =VLOOKUP(B149,Tabel3[#All],2,FALSE) -> 
C150: =VLOOKUP(B150,Tabel3[#All],2,FALSE) -> 
C151: =VLOOKUP(B151,Tabel3[#All],2,FALSE) -> 
C152: =VLOOKUP(B152,Tabel3[#All],2,FALSE) -> 

Sheet Avance
A1: 1 | B1: 10 | C1: 19 | D1: =VLOOKUP(C1,Tabel1[#All],2,FALSE) -> 100 | E1: =D1 -> 100 | K1: Kolonne1 | L1: Kolonne2
A2: 2 | B2: 15 | C2: 2 | D2: =VLOOKUP(C2,Tabel1[#All],2,FALSE) -> 15 | E2: =D2 -> 15 | K2: 1 | L2: 10
A3: 3 | B3: 20 | C3: 3 | D3: =VLOOKUP(C3,Tabel1[#All],2,FALSE) -> 20 | E3: 20 | K3: 2 | L3: 15
A4: 4 | B4: 25 | C4: 4 | D4: =VLOOKUP(C4,Tabel1[#All],2,FALSE) -> 25 | E4: 25 | K4: 3 | L4: 20
A5: 5 | B5: 30 | C5: 5 | D5: =VLOOKUP(C5,Tabel1[#All],2,FALSE) -> 30 | E5: 30 | K5: 4 | L5: 25
A6: 6 | B6: 35 | C6: 6 | D6: =VLOOKUP(C6,Tabel1[#All],2,FALSE) -> 35 | E6: 35 | K6: 5 | L6: 30
A7: 7 | B7: 40 | C7: 8 | D7: =VLOOKUP(C7,Tabel1[#All],2,FALSE) -> 45 | E7: 45 | K7: 6 | L7: 35
A8: 8 | B8: 45 | C8: 9 | D8: =VLOOKUP(C8,Tabel1[#All],2,FALSE) -> 50 | E8: 50 | K8: 7 | L8: 40
A9: 9 | B9: 50 | C9: 10 | D9: =VLOOKUP(C9,Tabel1[#All],2,FALSE) -> 55 | E9: 55 | K9: 8 | L9: 45
A10: 10 | B10: 55 | C10: 12 | D10: =VLOOKUP(C10,Tabel1[#All],2,FALSE) -> 65 | E10: 65 | K10: 9 | L10: 50
A11: 11 | B11: 60 | C11: 13 | D11: =VLOOKUP(C11,Tabel1[#All],2,FALSE) -> 70 | E11: 70 | K11: 10 | L11: 55
A12: 12 | B12: 65 | C12: 14 | D12: =VLOOKUP(C12,Tabel1[#All],2,FALSE) -> 75 | E12: 75 | K12: 11 | L12: 60
A13: 13 | B13: 70 | C13: 15 | D13: =VLOOKUP(C13,Tabel1[#All],2,FALSE) -> 80 | E13: 80 | K13: 12 | L13: 65
A14: 14 | B14: 75 | C14: 16 | D14: =VLOOKUP(C14,Tabel1[#All],2,FALSE) -> 85 | E14: 85 | K14: 13 | L14: 70
A15: 15 | B15: 80 | C15: 17 | D15: =VLOOKUP(C15,Tabel1[#All],2,FALSE) -> 90 | E15: 90 | K15: 14 | L15: 75
A16: 16 | B16: 85 | C16: 18 | D16: =VLOOKUP(C16,Tabel1[#All],2,FALSE) -> 95 | E16: 95 | K16: 15 | L16: 80
A17: 17 | B17: 90 | C17: 19 | D17: =VLOOKUP(C17,Tabel1[#All],2,FALSE) -> 100 | E17: 100 | K17: 16 | L17: 85
A18: 18 | B18: 95 | C18: 1 | D18: =VLOOKUP(C18,Tabel1[#All],2,FALSE) -> 10 | E18: 10 | K18: 17 | L18: 90
A19: 19 | B19: 100 | C19: 2 | D19: =VLOOKUP(C19,Tabel1[#All],2,FALSE) -> 15 | E19: 15 | K19: 18 | L19: 95
C20: 3 | D20: =VLOOKUP(C20,Tabel1[#All],2,FALSE) -> 20 | E20: 20 | K20: 19 | L20: 100
C21: 4 | D21: =VLOOKUP(C21,Tabel1[#All],2,FALSE) -> 25 | E21: 25
C22: 5 | D22: =VLOOKUP(C22,Tabel1[#All],2,FALSE) -> 30 | E22: 30
C23: 6 | D23: =VLOOKUP(C23,Tabel1[#All],2,FALSE) -> 35 | E23: 35
C24: 7 | D24: =VLOOKUP(C24,Tabel1[#All],2,FALSE) -> 40 | E24: 40
C25: 8 | D25: =VLOOKUP(C25,Tabel1[#All],2,FALSE) -> 45 | E25: 45
C26: 9 | D26: =VLOOKUP(C26,Tabel1[#All],2,FALSE) -> 50 | E26: 50
C27: 10 | D27: =VLOOKUP(C27,Tabel1[#All],2,FALSE) -> 55 | E27: 55
C28: 11 | D28: =VLOOKUP(C28,Tabel1[#All],2,FALSE) -> 60 | E28: 60
C29: 12 | D29: =VLOOKUP(C29,Tabel1[#All],2,FALSE) -> 65 | E29: 65
C30: 13 | D30: =VLOOKUP(C30,Tabel1[#All],2,FALSE) -> 70 | E30: 70
C31: 14 | D31: =VLOOKUP(C31,Tabel1[#All],2,FALSE) -> 75 | E31: 75
C32: 15 | D32: =VLOOKUP(C32,Tabel1[#All],2,FALSE) -> 80 | E32: 80
C33: 16 | D33: =VLOOKUP(C33,Tabel1[#All],2,FALSE) -> 85 | E33: 85
C34: 17 | D34: =VLOOKUP(C34,Tabel1[#All],2,FALSE) -> 90 | E34: 90
C35: 18 | D35: =VLOOKUP(C35,Tabel1[#All],2,FALSE) -> 95 | E35: 95
C36: 19 | D36: =VLOOKUP(C36,Tabel1[#All],2,FALSE) -> 100 | E36: 100
C37: 1 | D37: =VLOOKUP(C37,Tabel1[#All],2,FALSE) -> 10 | E37: 10
C38: 2 | D38: =VLOOKUP(C38,Tabel1[#All],2,FALSE) -> 15 | E38: 15
C39: 3 | D39: =VLOOKUP(C39,Tabel1[#All],2,FALSE) -> 20 | E39: 20
C40: 4 | D40: =VLOOKUP(C40,Tabel1[#All],2,FALSE) -> 25 | E40: 25
C41: 5 | D41: =VLOOKUP(C41,Tabel1[#All],2,FALSE) -> 30 | E41: 30
C42: 6 | D42: =VLOOKUP(C42,Tabel1[#All],2,FALSE) -> 35 | E42: 35
C43: 7 | D43: =VLOOKUP(C43,Tabel1[#All],2,FALSE) -> 40 | E43: 40
C44: 8 | D44: =VLOOKUP(C44,Tabel1[#All],2,FALSE) -> 45 | E44: 45
C45: 9 | D45: =VLOOKUP(C45,Tabel1[#All],2,FALSE) -> 50 | E45: 50
C46: 10 | D46: =VLOOKUP(C46,Tabel1[#All],2,FALSE) -> 55 | E46: 55
C47: 11 | D47: =VLOOKUP(C47,Tabel1[#All],2,FALSE) -> 60 | E47: 60
C48: 12 | D48: =VLOOKUP(C48,Tabel1[#All],2,FALSE) -> 65 | E48: 65
C49: 13 | D49: =VLOOKUP(C49,Tabel1[#All],2,FALSE) -> 70 | E49: 70
C50: 14 | D50: =VLOOKUP(C50,Tabel1[#All],2,FALSE) -> 75 | E50: 75
C51: 15 | D51: =VLOOKUP(C51,Tabel1[#All],2,FALSE) -> 80 | E51: 80
C52: 16 | D52: =VLOOKUP(C52,Tabel1[#All],2,FALSE) -> 85 | E52: 85
C53: 17 | D53: =VLOOKUP(C53,Tabel1[#All],2,FALSE) -> 90 | E53: 90
C54: 18 | D54: =VLOOKUP(C54,Tabel1[#All],2,FALSE) -> 95 | E54: 95
C55: 1 | D55: =VLOOKUP(C55,Tabel1[#All],2,FALSE) -> 10 | E55: 10
C56: 1 | D56: =VLOOKUP(C56,Tabel1[#All],2,FALSE) -> 10 | E56: 10
C57: 2 | D57: =VLOOKUP(C57,Tabel1[#All],2,FALSE) -> 15 | E57: 15
C58: 3 | D58: =VLOOKUP(C58,Tabel1[#All],2,FALSE) -> 20 | E58: 20
C59: 4 | D59: =VLOOKUP(C59,Tabel1[#All],2,FALSE) -> 25 | E59: 25
C60: 5 | D60: =VLOOKUP(C60,Tabel1[#All],2,FALSE) -> 30 | E60: 30
C61: 6 | D61: =VLOOKUP(C61,Tabel1[#All],2,FALSE) -> 35 | E61: 35
C62: 7 | D62: =VLOOKUP(C62,Tabel1[#All],2,FALSE) -> 40 | E62: 40
C63: 8 | D63: =VLOOKUP(C63,Tabel1[#All],2,FALSE) -> 45 | E63: 45
C64: 9 | D64: =VLOOKUP(C64,Tabel1[#All],2,FALSE) -> 50 | E64: 50
C65: 10 | D65: =VLOOKUP(C65,Tabel1[#All],2,FALSE) -> 55 | E65: 55
C66: 11 | D66: =VLOOKUP(C66,Tabel1[#All],2,FALSE) -> 60 | E66: =D66 -> 60
C67: 12 | D67: =VLOOKUP(C67,Tabel1[#All],2,FALSE) -> 65 | E67: 65
C68: 13 | D68: =VLOOKUP(C68,Tabel1[#All],2,FALSE) -> 70 | E68: 70
C69: 14 | D69: =VLOOKUP(C69,Tabel1[#All],2,FALSE) -> 75 | E69: 75
C70: 15 | D70: =VLOOKUP(C70,Tabel1[#All],2,FALSE) -> 80 | E70: 80
C71: 16 | D71: =VLOOKUP(C71,Tabel1[#All],2,FALSE) -> 85 | E71: 85
C72: 17 | D72: =VLOOKUP(C72,Tabel1[#All],2,FALSE) -> 90 | E72: 90
C73: 18 | D73: =VLOOKUP(C73,Tabel1[#All],2,FALSE) -> 95 | E73: 95
C74: 19 | D74: =VLOOKUP(C74,Tabel1[#All],2,FALSE) -> 100 | E74: 100
C75: 1 | D75: =VLOOKUP(C75,Tabel1[#All],2,FALSE) -> 10 | E75: 10
C76: 2 | D76: =VLOOKUP(C76,Tabel1[#All],2,FALSE) -> 15 | E76: 15
C77: 3 | D77: =VLOOKUP(C77,Tabel1[#All],2,FALSE) -> 20 | E77: 20
C78: 4 | D78: =VLOOKUP(C78,Tabel1[#All],2,FALSE) -> 25 | E78: 25
C79: 5 | D79: =VLOOKUP(C79,Tabel1[#All],2,FALSE) -> 30 | E79: 30
C80: 6 | D80: =VLOOKUP(C80,Tabel1[#All],2,FALSE) -> 35 | E80: 35
C81: 7 | D81: =VLOOKUP(C81,Tabel1[#All],2,FALSE) -> 40 | E81: 40
C82: 8 | D82: =VLOOKUP(C82,Tabel1[#All],2,FALSE) -> 45 | E82: 45
C83: 9 | D83: =VLOOKUP(C83,Tabel1[#All],2,FALSE) -> 50 | E83: 50
C84: 10 | D84: =VLOOKUP(C84,Tabel1[#All],2,FALSE) -> 55 | E84: 55
C85: 11 | D85: =VLOOKUP(C85,Tabel1[#All],2,FALSE) -> 60 | E85: 60
C86: 12 | D86: =VLOOKUP(C86,Tabel1[#All],2,FALSE) -> 65 | E86: 65
C87: 13 | D87: =VLOOKUP(C87,Tabel1[#All],2,FALSE) -> 70 | E87: 70
C88: 14 | D88: =VLOOKUP(C88,Tabel1[#All],2,FALSE) -> 75 | E88: 75
C89: 15 | D89: =VLOOKUP(C89,Tabel1[#All],2,FALSE) -> 80 | E89: 80
C90: 16 | D90: =VLOOKUP(C90,Tabel1[#All],2,FALSE) -> 85 | E90: 85
C91: 17 | D91: =VLOOKUP(C91,Tabel1[#All],2,FALSE) -> 90 | E91: 90
C92: 18 | D92: =VLOOKUP(C92,Tabel1[#All],2,FALSE) -> 95 | E92: 95
C93: 19 | D93: =VLOOKUP(C93,Tabel1[#All],2,FALSE) -> 100 | E93: 100
C94: 1 | D94: =VLOOKUP(C94,Tabel1[#All],2,FALSE) -> 10 | E94: 10
C95: 2 | D95: =VLOOKUP(C95,Tabel1[#All],2,FALSE) -> 15 | E95: 15
C96: 3 | D96: =VLOOKUP(C96,Tabel1[#All],2,FALSE) -> 20 | E96: 20
C97: 4 | D97: =VLOOKUP(C97,Tabel1[#All],2,FALSE) -> 25 | E97: 25
C98: 5 | D98: =VLOOKUP(C98,Tabel1[#All],2,FALSE) -> 30 | E98: 30
C99: 6 | D99: =VLOOKUP(C99,Tabel1[#All],2,FALSE) -> 35 | E99: 35
C100: 7 | D100: =VLOOKUP(C100,Tabel1[#All],2,FALSE) -> 40 | E100: 40
C101: 8 | D101: =VLOOKUP(C101,Tabel1[#All],2,FALSE) -> 45 | E101: 45
C102: 9 | D102: =VLOOKUP(C102,Tabel1[#All],2,FALSE) -> 50 | E102: 50
C103: 10 | D103: =VLOOKUP(C103,Tabel1[#All],2,FALSE) -> 55 | E103: 55
C104: 11 | D104: =VLOOKUP(C104,Tabel1[#All],2,FALSE) -> 60 | E104: 60
C105: 12 | D105: =VLOOKUP(C105,Tabel1[#All],2,FALSE) -> 65 | E105: 65
C106: 13 | D106: =VLOOKUP(C106,Tabel1[#All],2,FALSE) -> 70 | E106: 70
C107: 14 | D107: =VLOOKUP(C107,Tabel1[#All],2,FALSE) -> 75 | E107: 75
C108: 15 | D108: =VLOOKUP(C108,Tabel1[#All],2,FALSE) -> 80 | E108: 80
C109: 16 | D109: =VLOOKUP(C109,Tabel1[#All],2,FALSE) -> 85 | E109: 85
C110: 17 | D110: =VLOOKUP(C110,Tabel1[#All],2,FALSE) -> 90 | E110: 90

Sheet m2 Udregning-Resultat
A1: Netto pris | B1: =Udregning!P1 -> 1457412 | C1: Netto Salgspris | D1: =Udregning!R1 -> 2444293.4 | E1: Brutto Salg + Moms | F1: =D1+D3 -> 3055366.75
A2: Moms | B2: 0.25 | C2: Moms | D2: 0.25 | E2: Fortjenste Netto | F2: =D1-B1 -> 986881.4
A3: Mons Indkøb | B3: =B1*B2 -> 364353 | C3: Moms netto | D3: =D1*D2 -> 611073.35 | E3: Fortjenste Brutto | F3: =F1-B1-B3 -> 1233601.75
A6: Amtal m2 | C6: kiler pr opklods | D6: 2 | E6: Gulv pr. pak | G6: m2
A7: Højde opklodsning
A9: Brikker pr m2 | C9: stk | D9: =B6*B9 -> 0
A10: Kiler pr m2 | C10: stk | D10: =B6*B10*D6 -> 0
A11: strø pr m2 | C11: m | D11: =B6*B11 -> 0
A12: 4" søm pr m2 | C12: stk | D12: =B6*B12 -> 0
A13: gulv søm pr m2 | C13: stk | D13: =B6*B13 -> 0
A14: Kile fod pr m2 | C14: stk | D14: =B6*B14 -> 0
A15: Mellemstykke pr m2 | C15: stk | D15: =B6*B15*B10 -> 0
A17: Antal pakker gulv | C17: =B6/F6 -> 
A18: Spild | C18: =B6*B18 -> 0
A19: Total gulv i pakker | C19: =C17+C18 -> 

Sheet Udskrift
D2: =TODAY() -> 2012-04-07
D4: Side 1
A5: Til | B5: Tilbud
A6: Work 4 you | D6: Tilbud nr.: 100
A7: Åsvej 83
A8: 7700 Thisted | D8: Ref.: TB
A10: Type | B10: Antal | C10: Benævnelse | D10: Pris
A11: Dampspære | B11: 1 | C11: Tuber | D11: 20
A12: Kiler | B12: 10 | C12: Tuber | D12: 125
A13: Isolering måtter | B13: 100 | C13: Tuber | D13: 31000
A14: Skruer 70 | B14: 10 | C14: Tuber | D14: 1700
A15: Plade | B15: 1 | C15: Tuber | D15: 1.95
A16: Lamel | B16: 1000 | C16: Meter | D16: 400000
A17: Termofelt | B17: 1 | C17: Meter | D17: 1.45
A18: stål skinne | B18: 1000 | C18: M2 | D18: 1650000
A19: km | B19: 100 | C19: Sæt | D19: 345
A20: vanderhjem | B20: 100 | C20: Kasser | D20: 14000
A21: M2 | B21: 1000 | C21: Billet | D21: 171000
A22: træ 100 x 300 | B22: 1 | C22: stk | D22: 5500
A23: plast | B23: 10 | C23: Km | D23: 25000
A24: Transport | B24: 100 | C24: stk | D24: 125000
A25: Loftliste | B25: 1000 | C25: stk | D25: 15000
A26: Tilpasnings list | B26: 500 | C26: stk | D26: 5600
C49: Total | D49: =SUM(D11:D48) -> 2444293.4
C50: Moms | D50: =D49*0.25 -> 611073.35
C51: Fragt | D51: =Udregning!I201 -> 1000000
C52: Rabat
C53: I alt | D53: =D49+D50+D51-D52 -> 4055366.75
A55: Work 4 You Åsvej 83 7700 thisted l CVR. 34152624 l E-Mail.: admin@work4you.dk l Web.: www.work4you.dk

Sheet Filter
A1: Kolonne1 | B1: Kolonne2 | C1: Kolonne3 | D1: Kolonne4
A2: =Udregning!L3 -> Dampspære | B2: =Udregning!K3 -> 1 | C2: =Udregning!M3 -> Tuber | D2: =Udregning!N3 -> 20
A3: =Udregning!L4 ->  | B3: =Udregning!K4 ->  | C3: =Udregning!M4 -> Tuber | D3: =Udregning!N4 -> 0
A4: =Udregning!L5 ->  | B4: =Udregning!K5 ->  | C4: =Udregning!M5 -> Tuber | D4: =Udregning!N5 -> 0
A5: =Udregning!L6 -> Kiler | B5: =Udregning!K6 -> 10 | C5: =Udregning!M6 -> Tuber | D5: =Udregning!N6 -> 125
A6: =Udregning!L7 ->  | B6: =Udregning!K7 ->  | C6: =Udregning!M7 -> Tuber | D6: =Udregning!N7 -> 0
A7: =Udregning!L8 ->  | B7: =Udregning!K8 ->  | C7: =Udregning!M8 -> Tuber | D7: =Udregning!N8 -> 0
A8: =Udregning!L9 ->  | B8: =Udregning!K9 ->  | C8: =Udregning!M9 -> Tuber | D8: =Udregning!N9 -> 0
A9: =Udregning!L10 ->  | B9: =Udregning!K10 ->  | C9: =Udregning!M10 -> Tuber | D9: =Udregning!N10 -> 0
A10: =Udregning!L11 -> Isolering måtter | B10: =Udregning!K11 -> 100 | C10: =Udregning!M11 -> Tuber | D10: =Udregning!N11 -> 31000
A11: =Udregning!L12 ->  | B11: =Udregning!K12 ->  | C11: =Udregning!M12 -> Tuber | D11: =Udregning!N12 -> 0
A12: =Udregning!L13 -> Skruer 70 | B12: =Udregning!K13 -> 10 | C12: =Udregning!M13 -> Tuber | D12: =Udregning!N13 -> 1700
A13: =Udregning!L14 ->  | B13: =Udregning!K14 ->  | C13: =Udregning!M14 -> Tuber | D13: =Udregning!N14 -> 0
A14: =Udregning!L15 ->  | B14: =Udregning!K15 ->  | C14: =Udregning!M15 -> Tuber | D14: =Udregning!N15 -> 0
A15: =Udregning!L16 ->  | B15: =Udregning!K16 ->  | C15: =Udregning!M16 -> Tuber | D15: =Udregning!N16 -> 0
A16: =Udregning!L17 ->  | B16: =Udregning!K17 ->  | C16: =Udregning!M17 -> Tuber | D16: =Udregning!N17 -> 0
A17: =Udregning!L18 -> Plade | B17: =Udregning!K18 -> 1 | C17: =Udregning!M18 -> Tuber | D17: =Udregning!N18 -> 1.95
A19: =Udregning!L20 -> Lamel | B19: =Udregning!K20 -> 1000 | C19: =Udregning!M20 -> Meter | D19: =Udregning!N20 -> 400000
A20: =Udregning!L21 ->  | B20: =Udregning!K21 ->  | C20: =Udregning!M21 -> Meter | D20: =Udregning!N21 -> 0
A21: =Udregning!L22 ->  | B21: =Udregning!K22 ->  | C21: =Udregning!M22 -> Meter | D21: =Udregning!N22 -> 0
A22: =Udregning!L23 ->  | B22: =Udregning!K23 ->  | C22: =Udregning!M23 -> Meter | D22: =Udregning!N23 -> 0
A23: =Udregning!L24 ->  | B23: =Udregning!K24 ->  | C23: =Udregning!M24 -> Meter | D23: =Udregning!N24 -> 0
A24: =Udregning!L25 ->  | B24: =Udregning!K25 ->  | C24: =Udregning!M25 -> Meter | D24: =Udregning!N25 -> 0
A25: =Udregning!L26 ->  | B25: =Udregning!K26 ->  | C25: =Udregning!M26 -> Meter | D25: =Udregning!N26 -> 0
A26: =Udregning!L27 ->  | B26: =Udregning!K27 ->  | C26: =Udregning!M27 -> Meter | D26: =Udregning!N27 -> 0
A27: =Udregning!L28 -> Termofelt | B27: =Udregning!K28 -> 1 | C27: =Udregning!M28 -> Meter | D27: =Udregning!N28 -> 1.45
A29: =Udregning!L30 ->  | B29: =Udregning!K30 ->  | C29: =Udregning!M30 -> M2 | D29: =Udregning!N30 -> 0
A30: =Udregning!L31 ->  | B30: =Udregning!K31 ->  | C30: =Udregning!M31 -> M2 | D30: =Udregning!N31 -> 0
A31: =Udregning!L32 ->  | B31: =Udregning!K32 ->  | C31: =Udregning!M32 -> M2 | D31: =Udregning!N32 -> 0
A32: =Udregning!L33 -> stål skinne | B32: =Udregning!K33 -> 1000 | C32: =Udregning!M33 -> M2 | D32: =Udregning!N33 -> 1650000
A33: =Udregning!L34 ->  | B33: =Udregning!K34 ->  | C33: =Udregning!M34 -> M2 | D33: =Udregning!N34 -> 0
A34: =Udregning!L35 ->  | B34: =Udregning!K35 ->  | C34: =Udregning!M35 -> M2 | D34: =Udregning!N35 -> 0
A35: =Udregning!L36 ->  | B35: =Udregning!K36 ->  | C35: =Udregning!M36 -> M2 | D35: =Udregning!N36 -> 0
A36: =Udregning!L37 ->  | B36: =Udregning!K37 ->  | C36: =Udregning!M37 -> M2 | D36: =Udregning!N37 -> 0
A38: =Udregning!L39 ->  | B38: =Udregning!K39 ->  | C38: =Udregning!M39 -> Billet | D38: =Udregning!N39 -> 0
A39: =Udregning!L40 ->  | B39: =Udregning!K40 ->  | C39: =Udregning!M40 -> Kasser | D39: =Udregning!N40 -> 0
A40: =Udregning!L41 ->  | B40: =Udregning!K41 ->  | C40: =Udregning!M41 -> Kasser | D40: =Udregning!N41 -> 0
A41: =Udregning!L42 ->  | B41: =Udregning!K42 ->  | C41: =Udregning!M42 -> Kasser | D41: =Udregning!N42 -> 0
A43: =Udregning!L44 -> km | B43: =Udregning!K44 -> 100 | C43: =Udregning!M44 -> Sæt | D43: =Udregning!N44 -> 345
A44: =Udregning!L45 ->  | B44: =Udregning!K45 ->  | C44: =Udregning!M45 -> Sæt | D44: =Udregning!N45 -> 0
A45: =Udregning!L46 ->  | B45: =Udregning!K46 ->  | C45: =Udregning!M46 -> Sæt | D45: =Udregning!N46 -> 0
A46: =Udregning!L47 ->  | B46: =Udregning!K47 ->  | C46: =Udregning!M47 -> Sæt | D46: =Udregning!N47 -> 0
A47: =Udregning!L48 ->  | B47: =Udregning!K48 ->  | C47: =Udregning!M48 -> Sæt | D47: =Udregning!N48 -> 0
A49: =Udregning!L50 -> vanderhjem | B49: =Udregning!K50 -> 100 | C49: =Udregning!M50 -> Kasser | D49: =Udregning!N50 -> 14000
A50: =Udregning!L51 ->  | B50: =Udregning!K51 ->  | C50: =Udregning!M51 -> Kasser | D50: =Udregning!N51 -> 0
A51: =Udregning!L52 ->  | B51: =Udregning!K52 ->  | C51: =Udregning!M52 -> Kasser | D51: =Udregning!N52 -> 0
A53: =Udregning!L54 ->  | B53: =Udregning!K54 ->  | C53: =Udregning!M54 -> Ruller | D53: =Udregning!N54 -> 0
A54: =Udregning!L55 ->  | B54: =Udregning!K55 ->  | C54: =Udregning!M55 -> Ruller | D54: =Udregning!N55 -> 0
A55: =Udregning!L56 ->  | B55: =Udregning!K56 ->  | C55: =Udregning!M56 -> Ruller | D55: =Udregning!N56 -> 0
A57: =Udregning!L58 ->  | B57: =Udregning!K58 ->  | C57: =Udregning!M58 -> Km | D57: =Udregning!N58 -> 0
A58: =Udregning!L59 ->  | B58: =Udregning!K59 ->  | C58: =Udregning!M59 -> Km | D58: =Udregning!N59 -> 0
A60: =Udregning!L61 -> M2 | B60: =Udregning!K61 -> 1000 | C60: =Udregning!M61 -> Billet | D60: =Udregning!N61 -> 171000
A61: =Udregning!L62 ->  | B61: =Udregning!K62 ->  | C61: =Udregning!M62 -> Billet | D61: =Udregning!N62 -> 0
A62: =Udregning!L63 ->  | B62: =Udregning!K63 ->  | C62: =Udregning!M63 -> Billet | D62: =Udregning!N63 -> 0
A63: =Udregning!L64 ->  | B63: =Udregning!K64 ->  | C63: =Udregning!M64 -> Billet | D63: =Udregning!N64 -> 0
A65: =Udregning!L66 -> træ 100 x 300 | B65: =Udregning!K66 -> 1 | C65: =Udregning!M66 -> stk | D65: =Udregning!N66 -> 5500
A66: =Udregning!L67 ->  | B66: =Udregning!K67 ->  | C66: =Udregning!M67 -> Km | D66: =Udregning!N67 -> 0
A67: =Udregning!L68 ->  | B67: =Udregning!K68 ->  | C67: =Udregning!M68 -> Km | D67: =Udregning!N68 -> 0
A68: =Udregning!L69 ->  | B68: =Udregning!K69 ->  | C68: =Udregning!M69 -> stk | D68: =Udregning!N69 -> 0
A69: =Udregning!L70 ->  | B69: =Udregning!K70 ->  | C69: =Udregning!M70 -> Billet | D69: =Udregning!N70 -> 0
A70: =Udregning!L71 ->  | B70: =Udregning!K71 ->  | C70: =Udregning!M71 -> Billet | D70: =Udregning!N71 -> 0
A71: =Udregning!L72 ->  | B71: =Udregning!K72 ->  | C71: =Udregning!M72 -> Billet | D71: =Udregning!N72 -> 0
A72: =Udregning!L73 ->  | B72: =Udregning!K73 ->  | C72: =Udregning!M73 -> Billet | D72: =Udregning!N73 -> 0
A73: =Udregning!L74 ->  | B73: =Udregning!K74 ->  | C73: =Udregning!M74 -> stk | D73: =Udregning!N74 -> 0
A74: =Udregning!L75 ->  | B74: =Udregning!K75 ->  | C74: =Udregning!M75 -> Meter | D74: =Udregning!N75 -> 0
A75: =Udregning!L76 ->  | B75: =Udregning!K76 ->  | C75: =Udregning!M76 -> Km | D75: =Udregning!N76 -> 0
A76: =Udregning!L77 ->  | B76: =Udregning!K77 ->  | C76: =Udregning!M77 -> Km | D76: =Udregning!N77 -> 0
A77: =Udregning!L78 ->  | B77: =Udregning!K78 ->  | C77: =Udregning!M78 -> stk | D77: =Udregning!N78 -> 0
A78: =Udregning!L79 ->  | B78: =Udregning!K79 ->  | C78: =Udregning!M79 -> Billet | D78: =Udregning!N79 -> 0
A79: =Udregning!L80 ->  | B79: =Udregning!K80 ->  | C79: =Udregning!M80 -> Billet | D79: =Udregning!N80 -> 0
A80: =Udregning!L81 ->  | B80: =Udregning!K81 ->  | C80: =Udregning!M81 -> Billet | D80: =Udregning!N81 -> 0
A81: =Udregning!L82 ->  | B81: =Udregning!K82 ->  | C81: =Udregning!M82 -> Billet | D81: =Udregning!N82 -> 0
A82: =Udregning!L83 ->  | B82: =Udregning!K83 ->  | C82: =Udregning!M83 -> stk | D82: =Udregning!N83 -> 0
A83: =Udregning!L84 ->  | B83: =Udregning!K84 ->  | C83: =Udregning!M84 -> stk | D83: =Udregning!N84 -> 0
A85: =Udregning!L86 -> plast | B85: =Udregning!K86 -> 10 | C85: =Udregning!M86 -> Km | D85: =Udregning!N86 -> 25000
A86: =Udregning!L87 ->  | B86: =Udregning!K87 ->  | C86: =Udregning!M87 -> Km | D86: =Udregning!N87 -> 0
A87: =Udregning!L88 ->  | B87: =Udregning!K88 ->  | C87: =Udregning!M88 -> stk | D87: =Udregning!N88 -> 0
A88: =Udregning!L89 ->  | B88: =Udregning!K89 ->  | C88: =Udregning!M89 -> Billet | D88: =Udregning!N89 -> 0
A89: =Udregning!L90 ->  | B89: =Udregning!K90 ->  | C89: =Udregning!M90 -> Billet | D89: =Udregning!N90 -> 0
A90: =Udregning!L91 ->  | B90: =Udregning!K91 ->  | C90: =Udregning!M91 -> Billet | D90: =Udregning!N91 -> 0
A91: =Udregning!L92 ->  | B91: =Udregning!K92 ->  | C91: =Udregning!M92 -> Billet | D91: =Udregning!N92 -> 0
A92: =Udregning!L93 ->  | B92: =Udregning!K93 ->  | C92: =Udregning!M93 -> stk | D92: =Udregning!N93 -> 0
A93: =Udregning!L94 ->  | B93: =Udregning!K94 ->  | C93: =Udregning!M94 -> stk | D93: =Udregning!N94 -> 0
A95: =Udregning!L96 ->  | B95: =Udregning!K96 ->  | C95: =Udregning!M96 -> Tuber | D95: =Udregning!N96 -> 0
A96: =Udregning!L97 ->  | B96: =Udregning!K97 ->  | C96: =Udregning!M97 -> Km | D96: =Udregning!N97 -> 0
A97: =Udregning!L98 ->  | B97: =Udregning!K98 ->  | C97: =Udregning!M98 -> Km | D97: =Udregning!N98 -> 0
A98: =Udregning!L99 ->  | B98: =Udregning!K99 ->  | C98: =Udregning!M99 -> stk | D98: =Udregning!N99 -> 0
A99: =Udregning!L100 ->  | B99: =Udregning!K100 ->  | C99: =Udregning!M100 -> Billet | D99: =Udregning!N100 -> 0
A100: =Udregning!L101 ->  | B100: =Udregning!K101 ->  | C100: =Udregning!M101 -> Billet | D100: =Udregning!N101 -> 0
A101: =Udregning!L102 ->  | B101: =Udregning!K102 ->  | C101: =Udregning!M102 -> Billet | D101: =Udregning!N102 -> 0
A102: =Udregning!L103 ->  | B102: =Udregning!K103 ->  | C102: =Udregning!M103 -> Billet | D102: =Udregning!N103 -> 0
A103: =Udregning!L104 ->  | B103: =Udregning!K104 ->  | C103: =Udregning!M104 -> stk | D103: =Udregning!N104 -> 0
A105: =Udregning!L106 ->  | B105: =Udregning!K106 ->  | C105: =Udregning!M106 -> stk | D105: =Udregning!N106 -> 0
A106: =Udregning!L107 ->  | B106: =Udregning!K107 ->  | C106: =Udregning!M107 -> Meter | D106: =Udregning!N107 -> 0
A107: =Udregning!L108 ->  | B107: =Udregning!K108 ->  | C107: =Udregning!M108 -> Meter | D107: =Udregning!N108 -> 0
A108: =Udregning!L109 ->  | B108: =Udregning!K109 ->  | C108: =Udregning!M109 -> Km | D108: =Udregning!N109 -> 0
A110: =Udregning!L111 ->  | B110: =Udregning!K111 ->  | C110: =Udregning!M111 -> Km | D110: =Udregning!N111 -> 0
A111: =Udregning!L112 -> Transport | B111: =Udregning!K112 -> 100 | C111: =Udregning!M112 -> stk | D111: =Udregning!N112 -> 125000
A112: =Udregning!L113 ->  | B112: =Udregning!K113 ->  | C112: =Udregning!M113 -> Billet | D112: =Udregning!N113 -> 0
A114: =Udregning!L115 ->  | B114: =Udregning!K115 ->  | C114: =Udregning!M115 -> Billet | D114: =Udregning!N115 -> 0
A115: =Udregning!L116 ->  | B115: =Udregning!K116 ->  | C115: =Udregning!M116 -> Billet | D115: =Udregning!N116 -> 0
A116: =Udregning!L117 ->  | B116: =Udregning!K117 ->  | C116: =Udregning!M117 -> Billet | D116: =Udregning!N117 -> 0
A117: =Udregning!L118 -> Loftliste | B117: =Udregning!K118 -> 1000 | C117: =Udregning!M118 -> stk | D117: =Udregning!N118 -> 15000
A118: =Udregning!L119 ->  | B118: =Udregning!K119 ->  | C118: =Udregning!M119 -> Meter | D118: =Udregning!N119 -> 0
A119: =Udregning!L120 -> Tilpasnings list | B119: =Udregning!K120 -> 500 | C119: =Udregning!M120 -> stk | D119: =Udregning!N120 -> 5600
A120: =Udregning!L121 ->  | B120: =Udregning!K121 ->  | C120: =Udregning!M121 -> Sæt | D120: =Udregning!N121 -> 0
A121: =Udregning!L122 ->  | B121: =Udregning!K122 ->  | C121: =Udregning!M122 -> Ruller | D121: =Udregning!N122 -> 0
A122: =Udregning!L123 ->  | B122: =Udregning!K123 ->  | C122: =Udregning!M123 -> Km | D122: =Udregning!N123 -> 0
A124: =Udregning!L125 ->  | B124: =Udregning!K125 ->  | C124: =Udregning!M125 -> M2 | D124: =Udregning!N125 -> 0
A125: =Udregning!L126 ->  | B125: =Udregning!K126 ->  | C125: =Udregning!M126 -> Km | D125: =Udregning!N126 -> 0
A126: =Udregning!L127 ->  | B126: =Udregning!K127 ->  | C126: =Udregning!M127 -> stk | D126: =Udregning!N127 -> 0
A127: =Udregning!L128 ->  | B127: =Udregning!K128 ->  | C127: =Udregning!M128 ->  | D127: =Udregning!N128 -> 0
A128: =Udregning!L129 ->  | B128: =Udregning!K129 ->  | C128: =Udregning!M129 ->  | D128: =Udregning!N129 -> 0
A129: =Udregning!L130 ->  | B129: =Udregning!K130 ->  | C129: =Udregning!M130 ->  | D129: =Udregning!N130 -> 0
A130: =Udregning!L131 ->  | B130: =Udregning!K131 ->  | C130: =Udregning!M131 ->  | D130: =Udregning!N131 -> 0
A131: =Udregning!L132 ->  | B131: =Udregning!K132 ->  | C131: =Udregning!M132 -> Km | D131: =Udregning!N132 -> 0
A132: =Udregning!L133 ->  | B132: =Udregning!K133 ->  | C132: =Udregning!M133 ->  | D132: =Udregning!N133 -> 0
A133: =Udregning!L134 ->  | B133: =Udregning!K134 ->  | C133: =Udregning!M134 ->  | D133: =Udregning!N134 -> 0
A134: =Udregning!L135 ->  | B134: =Udregning!K135 ->  | C134: =Udregning!M135 ->  | D134: =Udregning!N135 -> 0
A135: =Udregning!L136 ->  | B135: =Udregning!K136 ->  | C135: =Udregning!M136 ->  | D135: =Udregning!N136 -> 0
A136: =Udregning!L137 ->  | B136: =Udregning!K137 ->  | C136: =Udregning!M137 ->  | D136: =Udregning!N137 -> 0
A137: =Udregning!L138 ->  | B137: =Udregning!K138 ->  | C137: =Udregning!M138 ->  | D137: =Udregning!N138 -> 0
A138: =Udregning!L139 ->  | B138: =Udregning!K139 ->  | C138: =Udregning!M139 ->  | D138: =Udregning!N139 -> 0
A139: =Udregning!L140 ->  | B139: =Udregning!K140 ->  | C139: =Udregning!M140 ->  | D139: =Udregning!N140 -> 0
A140: =Udregning!L141 ->  | B140: =Udregning!K141 ->  | C140: =Udregning!M141 ->  | D140: =Udregning!N141 -> 0
A141: =Udregning!L142 ->  | B141: =Udregning!K142 ->  | C141: =Udregning!M142 ->  | D141: =Udregning!N142 -> 0
A142: =Udregning!L143 ->  | B142: =Udregning!K143 ->  | C142: =Udregning!M143 ->  | D142: =Udregning!N143 -> 0
A143: =Udregning!L144 ->  | B143: =Udregning!K144 ->  | C143: =Udregning!M144 ->  | D143: =Udregning!N144 -> 0
A144: =Udregning!L145 ->  | B144: =Udregning!K145 ->  | C144: =Udregning!M145 ->  | D144: =Udregning!N145 -> 0
A145: =Udregning!L146 ->  | B145: =Udregning!K146 ->  | C145: =Udregning!M146 ->  | D145: =Udregning!N146 -> 0
A146: =Udregning!L147 ->  | B146: =Udregning!K147 ->  | C146: =Udregning!M147 ->  | D146: =Udregning!N147 -> 0
A147: =Udregning!L148 ->  | B147: =Udregning!K148 ->  | C147: =Udregning!M148 ->  | D147: =Udregning!N148 -> 0
A148: =Udregning!L149 ->  | B148: =Udregning!K149 ->  | C148: =Udregning!M149 ->  | D148: =Udregning!N149 -> 0
A149: =Udregning!L150 ->  | B149: =Udregning!K150 ->  | C149: =Udregning!M150 ->  | D149: =Udregning!N150 -> 0

Sheet Brev
G14: =Udskrift!A6 -> Work 4 you | H14: =Udskrift!A7 -> Åsvej 83 | I14: =Udskrift!A8 -> 7700 Thisted
F24: =Udskrift!A5 -> Til
